bitfinex/quotes_SOLUSD_20230116
["timestamp","ask_amount","ask_price","bid_price","bid_amount"]
[1673854498637,21.97744,24.413,24.39,19.05]
[1673854498852,69.42679934,24.413,24.39,19.05]
[1673854501895,1.97744,24.413,24.39,19.05]
[1673854502088,21.97744,24.413,24.391,17.0]
[1673854502932,65.67153267,24.413,24.391,17.0]
[1673854503703,65.67153267,24.413,24.39,19.05]
[1673854503924,65.67153267,24.413,24.391,20.0]
[1673854505070,65.67153267,24.413,24.392,17.0]
[1673854506101,1.97744,24.413,24.392,17.0]
[1673854506312,115.1975,24.414,24.393,40.0]
[1673854506527,115.1975,24.414,24.395,20.0]
[1673854506738,115.1975,24.414,24.396,20.0]
[1673854506946,115.1975,24.414,24.397,17.0]
[1673854507375,115.1975,24.414,24.398,20.0]
[1673854507591,115.1975,24.414,24.399,17.0]
[1673854507792,115.1975,24.414,24.4,20.0]
[1673854508016,115.1975,24.414,24.401,17.0]
[1673854508419,20.0,24.413,24.399,17.0]
[1673854508628,20.0,24.413,24.4,20.0]
[1673854508849,20.0,24.413,24.401,17.0]
[1673854509067,20.0,24.413,24.4,20.0]
[1673854509270,21.97744,24.413,24.391,20.0]
[1673854511358,21.97744,24.413,24.392,17.0]
[1673854511568,21.97744,24.413,24.393,20.0]
[1673854511799,21.97744,24.413,24.394,17.0]
[1673854512327,21.97744,24.413,24.395,20.0]
[1673854512535,20.0,24.413,24.396,17.0]
[1673854512733,20.0,24.413,24.397,20.0]
[1673854512937,1.97744,24.412,24.395,20.0]
[1673854513570,1.97744,24.412,24.391,20.0]
[1673854513985,20.0,24.413,24.391,20.0]
[1673854513986,20.0,24.413,24.392,17.0]
[1673854514195,20.0,24.413,24.393,20.0]
[1673854514425,20.0,24.413,24.394,17.0]
[1673854514851,20.0,24.413,24.395,20.0]
[1673854515043,20.0,24.413,24.396,17.0]
[1673854515253,20.0,24.413,24.397,20.0]
[1673854515462,20.0,24.413,24.398,17.0]
[1673854515675,115.1975,24.414,24.399,20.0]
[1673854515895,115.1975,24.414,24.4,17.0]
[1673854516430,20.0,24.421,24.401,20.0]
[1673854516630,20.0,24.421,24.402,17.0]
[1673854517050,20.0,24.439,24.402,17.0]
[1673854517263,108.0967,24.434,24.403,20.0]
[1673854517461,20.0,24.433,24.404,37.0]
[1673854517792,20.0,24.433,24.405,20.0]
[1673854517994,20.0,24.433,24.406,17.0]
[1673854518215,20.0,24.433,24.407,20.0]
[1673854518414,1.97744,24.425,24.408,17.0]
[1673854518753,1.97744,24.425,24.409,20.0]
[1673854518955,1.97744,24.425,24.403,20.0]
[1673854519370,1.97744,24.425,24.401,20.0]
[1673854520102,1.97744,24.425,24.41,19.09]
[1673854520320,135.1975,24.427,24.411,20.0]
[1673854520511,135.1975,24.427,24.411,37.0]
[1673854522195,135.1975,24.427,24.411,20.0]
[1673854522612,21.97744,24.426,24.411,20.0]
[1673854522823,21.97744,24.426,24.403,20.0]
[1673854523556,1.97744,24.425,24.403,20.0]
[1673854523988,31.58582197,24.424,24.401,20.0]
[1673854524181,20.0,24.423,24.401,20.0]
[1673854525254,1.97744,24.422,24.401,20.0]
[1673854525450,20.0,24.421,24.401,20.0]
[1673854525659,18.97744,24.42,24.39,19.09]
[1673854525877,1.97744,24.419,24.39,19.09]
[1673854526086,20.0,24.418,24.39,19.09]
[1673854526287,1.97744,24.417,24.39,19.09]
[1673854526498,20.0,24.416,24.39,19.09]
[1673854526707,1.97744,24.415,24.39,19.09]
[1673854527548,20.0,24.413,24.39,19.09]
[1673854527764,21.97744,24.413,24.39,19.09]
[1673854528201,1.97744,24.412,24.39,19.09]
[1673854528597,1.97744,24.412,24.391,20.0]
[1673854528824,1.97744,24.412,24.383,20.0]
[1673854529880,1.97744,24.412,24.384,17.0]
[1673854530086,1.97744,24.412,24.385,20.0]
[1673854530306,1.97744,24.412,24.386,17.0]
[1673854530736,1.97744,24.412,24.387,20.0]
[1673854530931,1.97744,24.412,24.388,17.0]
[1673854531346,1.97744,24.412,24.389,20.0]
[1673854531560,1.97744,24.412,24.39,17.0]
[1673854531775,1.97744,24.412,24.391,20.0]
[1673854531989,44.48728308,24.411,24.391,20.0]
[1673854532203,20.0,24.409,24.383,20.0]
[1673854532402,20.0,24.409,24.382,115.4211]
[1673854532403,1.97744,24.408,24.382,115.4211]
[1673854532620,20.0,24.406,24.382,115.4211]
[1673854532827,1.97744,24.405,24.383,20.0]
[1673854533242,1.97744,24.405,24.382,115.4211]
[1673854533785,1.97744,24.405,24.383,20.0]
[1673854533997,1.97744,24.405,24.383,37.0]
[1673854534403,1.97744,24.405,24.382,115.4211]
[1673854534836,1.97744,24.405,24.383,20.0]
[1673854535243,1.97744,24.405,24.382,115.4211]
[1673854535774,1.97744,24.405,24.383,20.0]
[1673854536192,1.97744,24.405,24.381,20.0]
[1673854536827,118.91415628,24.405,24.381,20.0]
[1673854537241,20.0,24.404,24.368,40.0]
[1673854537458,1.97744,24.403,24.371,10.109691]
[1673854537654,1.97744,24.403,24.372,20.0]
[1673854538078,1.97744,24.403,24.373,20.0]
[1673854538300,1.97744,24.403,24.374,37.0]
[1673854538509,49.94728308,24.402,24.374,20.0]
[1673854538715,1.97744,24.401,24.371,20.0]
[1673854539463,138.44894,24.401,24.371,20.0]
[1673854539675,20.0,24.4,24.371,20.0]
[1673854539891,1.97744,24.399,24.372,17.0]
[1673854540290,1.97744,24.399,24.373,20.0]
[1673854540609,1.97744,24.399,24.374,17.0]
[1673854540831,1.97744,24.399,24.375,20.0]
[1673854541035,1.97744,24.399,24.376,17.0]
[1673854541242,1.97744,24.399,24.377,20.0]
[1673854541466,1.97744,24.399,24.378,17.0]
[1673854541674,1.97744,24.399,24.379,20.0]
[1673854541900,1.97744,24.399,24.38,17.0]
[1673854542209,1.97744,24.399,24.381,20.0]
[1673854542425,1.97744,24.399,24.382,17.0]
[1673854542829,1.97744,24.399,24.383,20.0]
[1673854543057,1.97744,24.399,24.384,17.0]
[1673854543254,1.97744,24.399,24.385,20.0]
[1673854543662,1.97744,24.399,24.371,20.0]
[1673854544730,1.97744,24.399,24.373,20.0]
[1673854545056,1.97744,24.399,24.375,20.0]
[1673854545363,1.97744,24.399,24.377,20.0]
[1673854545557,20.0,24.4,24.378,17.0]
[1673854545774,20.0,24.4,24.379,20.0]
[1673854546098,21.97744,24.4,24.38,17.0]
[1673854546303,21.97744,24.4,24.381,20.0]
[1673854546625,21.97744,24.4,24.382,17.0]
[1673854546941,21.97744,24.4,24.383,20.0]
[1673854547148,21.97744,24.4,24.384,17.0]
[1673854547471,1.97744,24.399,24.385,20.0]
[1673854547669,1.97744,24.399,24.386,17.0]
[1673854547867,1.97744,24.399,24.387,20.0]
[1673854548080,1.97744,24.399,24.388,17.0]
[1673854548406,1.97744,24.399,24.389,20.0]
[1673854548839,1.97744,24.399,24.371,20.0]
[1673854549036,18.97744,24.399,24.371,20.0]
[1673854549232,1.97744,24.399,24.371,20.0]
[1673854550291,1.97744,24.399,24.372,17.0]
[1673854550711,1.97744,24.399,24.373,20.0]
[1673854550922,1.97744,24.399,24.374,17.0]
[1673854551123,1.97744,24.399,24.373,20.0]
[1673854551463,49.9894332,24.398,24.36,19.06]
[1673854551672,18.97744,24.397,24.36,19.06]
[1673854551882,20.0,24.395,24.363,20.0]
[1673854552095,114.77584,24.394,24.363,20.0]
[1673854552286,21.97744,24.393,24.36,19.06]
[1673854552492,1.97744,24.392,24.363,114.0819]
[1673854552703,1.97744,24.392,24.36,19.06]
[1673854552914,177.59106197,24.392,24.35,19.54861354]
[1673854553123,284.30438886,24.391,24.35,19.54861354]
[1673854553347,161.57744,24.39,24.35,19.54861354]
[1673854553567,20.0,24.388,24.362,16.422977]
[1673854553770,18.97744,24.387,24.362,16.422977]
[1673854554095,144.57744,24.386,24.362,16.422977]
[1673854554287,18.97744,24.385,24.35,0.44861354]
[1673854554504,144.57744,24.384,24.35,0.44861354]
[1673854554815,20.0,24.381,24.35,0.44861354]
[1673854555033,20.0,24.378,24.35,0.44861354]
[1673854555248,122.6,24.376,24.33,19.1]
[1673854555441,122.6,24.376,24.33,16.431179]
[1673854555442,18.95,24.36,24.33,16.431179]
[1673854555653,1.97744,24.359,24.33,16.431179]
[1673854555879,19.1,24.35,24.33,16.431179]
[1673854556205,21.97744,24.349,24.33,16.431179]
[1673854556513,21.97744,24.349,24.3,19.28]
[1673854556514,20.0,24.347,24.3,19.28]
[1673854556699,1.97744,24.345,24.3,19.28]
[1673854556910,20.0,24.344,24.3,19.28]
[1673854557139,1.97744,24.343,24.3,19.28]
[1673854557340,1.97744,24.343,24.304,20.0]
[1673854557341,20.0,24.342,24.304,20.0]
[1673854557554,1.97744,24.341,24.31,19.1]
[1673854557765,1.97744,24.341,24.32,18.91]
[1673854558398,32.21611839,24.347,24.32,18.91]
[1673854558602,1.97744,24.346,24.321,20.0]
[1673854559222,1.97744,24.346,24.32,18.91]
[1673854559438,1.97744,24.346,24.31,19.1]
[1673854559650,1.97744,24.346,24.312,20.0]
[1673854559984,32.48478506,24.345,24.312,20.0]
[1673854560170,1.97744,24.344,24.313,35.99594835]
[1673854560384,1.97744,24.344,24.314,20.0]
[1673854560912,1.97744,24.344,24.315,35.99594835]
[1673854561242,21.97744,24.344,24.316,20.0]
[1673854561430,32.47691885,24.343,24.314,20.0]
[1673854561644,1.97744,24.342,24.311,20.0]
[1673854561873,21.97744,24.342,24.312,20.0]
[1673854562184,21.97744,24.342,24.313,20.0]
[1673854562398,21.97744,24.342,24.32,18.91]
[1673854562797,21.97744,24.342,24.321,56.98897502]
[1673854563146,21.97744,24.342,24.321,20.0]
[1673854563970,54.45435885,24.342,24.31,19.1]
[1673854564188,21.46196354,24.341,24.31,19.1]
[1673854564396,1.97744,24.34,24.31,19.1]
[1673854564605,20.0,24.339,24.3,19.28]
[1673854564914,20.0,24.337,24.3,19.28]
[1673854565132,238.26004,24.336,24.29,18.98]
[1673854565445,1.97744,24.335,24.29,18.98]
[1673854565647,20.0,24.334,24.3,18.92]
[1673854565852,1.97744,24.333,24.3,18.92]
[1673854566272,18.95,24.33,24.293,30.10764168]
[1673854566496,1.97744,24.329,24.27,113.4322]
[1673854566713,71.30561311,24.329,24.28,18.98]
[1673854567014,71.30561311,24.329,24.281,20.0]
[1673854567015,52.32817311,24.328,24.281,20.0]
[1673854567224,1.97744,24.327,24.29,18.92]
[1673854567444,1.97744,24.327,24.282,10.109691]
[1673854567631,55.76757665,24.327,24.282,10.109691]
[1673854567837,73.79013665,24.326,24.282,10.109691]
[1673854568050,1.97744,24.325,24.282,10.109691]
[1673854568275,34.30561311,24.325,24.283,164.31626968]
[1673854568489,1.97744,24.325,24.29,18.98]
[1673854568702,1.97744,24.325,24.3,19.1]
[1673854569125,1.97744,24.325,24.301,9.53898936]
[1673854569316,39.1,24.33,24.298,35.88816968]
[1673854569530,20.0,24.323,24.29,28.45898936]
[1673854569745,1.97744,24.322,24.29,28.45898936]
[1673854570060,1.97744,24.322,24.3,19.1]
[1673854570892,1.97744,24.322,24.301,17.0]
[1673854571111,1.97744,24.322,24.29,18.91]
[1673854571318,1.97744,24.322,24.298,9.53898936]
[1673854571538,1.97744,24.322,24.291,20.0]
[1673854572168,1.97744,24.322,24.292,9.53898936]
[1673854572378,19.0,24.32,24.28,35.446044]
[1673854572574,19.0,24.32,24.28,16.466044]
[1673854572575,21.97744,24.319,24.28,16.466044]
[1673854572780,21.97744,24.318,24.28,16.466044]
[1673854572996,1.97744,24.317,24.28,16.466044]
[1673854573313,37.03644579,24.316,24.28,16.466044]
[1673854573519,38.97744,24.315,24.28,16.466044]
[1673854573739,20.0,24.313,24.28,16.466044]
[1673854574052,19.1,24.31,24.28,16.466044]
[1673854574266,38.97744,24.309,24.28,16.466044]
[1673854574468,21.97744,24.308,24.28,16.466044]
[1673854574683,1.97744,24.307,24.28,16.466044]
[1673854575088,23.43940354,24.307,24.28,16.466044]
[1673854575299,53.6955817,24.307,24.28,16.466044]
[1673854575537,90.73202749,24.307,24.28,16.466044]
[1673854575731,20.0,24.306,24.28,16.466044]
[1673854575934,1.97744,24.305,24.28,16.466044]
[1673854576141,18.97744,24.305,24.281,9.53898936]
[1673854576357,1.97744,24.305,24.281,9.53898936]
[1673854576680,20.0,24.304,24.28,16.466044]
[1673854576894,18.97744,24.303,24.28,16.466044]
[1673854577102,20.0,24.302,24.28,16.466044]
[1673854577322,1.97744,24.301,24.28,16.466044]
[1673854577519,20.0,24.306,24.281,9.53898936]
[1673854577736,109.0176,24.31,24.282,20.0]
[1673854577933,21.97744,24.308,24.282,20.0]
[1673854578147,21.97744,24.308,24.283,17.0]
[1673854578369,1.97744,24.307,24.28,19.1]
[1673854578577,1.97744,24.307,24.28,16.470202]
[1673854578908,1.97744,24.307,24.281,29.53898936]
[1673854579110,20.0,24.308,24.281,29.53898936]
[1673854579326,20.0,24.308,24.282,9.53898936]
[1673854579524,21.97744,24.308,24.283,20.0]
[1673854579726,20.0,24.313,24.284,20.0]
[1673854579940,20.0,24.313,24.29,19.02]
[1673854580376,20.0,24.313,24.291,29.53898936]
[1673854580586,20.0,24.313,24.292,17.0]
[1673854580802,20.0,24.313,24.28,35.390202]
[1673854580803,21.97744,24.309,24.28,35.390202]
[1673854581013,1.97744,24.308,24.281,20.0]
[1673854581202,1.97744,24.308,24.28,35.390202]
[1673854581535,1.97744,24.308,24.29,19.1]
[1673854581852,20.0,24.313,24.29,19.1]
[1673854582057,1.97744,24.312,24.282,9.39289709]
[1673854582462,1.97744,24.312,24.283,20.0]
[1673854582671,1.97744,24.312,24.284,20.0]
[1673854582896,20.0,24.31,24.28,16.470202]
[1673854583108,21.97744,24.309,24.28,16.470202]
[1673854583419,1.97744,24.308,24.28,16.470202]
[1673854583629,20.0,24.313,24.281,29.39289709]
[1673854583850,1.97744,24.312,24.281,9.39289709]
[1673854584053,1.97744,24.312,24.282,9.39289709]
[1673854585106,1.97744,24.312,24.28,16.470202]
[1673854585318,21.46196354,24.311,24.281,9.39289709]
[1673854585509,20.0,24.313,24.281,3.89289709]
[1673854585510,1.97744,24.31,24.281,3.89289709]
[1673854585721,1.97744,24.31,24.281,9.39289709]
[1673854585941,1.97744,24.31,24.282,20.0]
[1673854586369,1.97744,24.31,24.283,9.39289709]
[1673854586563,1.97744,24.31,24.283,9.98570765]
[1673854586773,21.46196354,24.309,24.28,35.570202]
[1673854587002,1.97744,24.308,24.28,35.570202]
[1673854587403,20.0,24.307,24.28,35.570202]
[1673854587613,1.97744,24.306,24.28,35.570202]
[1673854588349,1.97744,24.306,24.281,17.0]
[1673854588990,20.0,24.309,24.282,20.0]
[1673854589205,20.0,24.309,24.283,17.0]
[1673854589415,102.23692322,24.356,24.283,26.98570765]
[1673854589611,110.0591,24.349,24.285,20.0]
[1673854589834,20.0,24.329,24.287,20.0]
[1673854590041,21.97744,24.316,24.288,17.0]
[1673854590246,21.97744,24.316,24.289,20.0]
[1673854590459,1.97744,24.316,24.29,36.02]
[1673854590689,117.4392,24.323,24.3,19.1]
[1673854590874,117.4392,24.323,24.301,17.0]
[1673854591085,20.0,24.329,24.302,20.0]
[1673854591419,20.0,24.33,24.304,20.0]
[1673854591631,20.0,24.33,24.305,17.0]
[1673854591948,20.0,24.33,24.306,9.66738176]
[1673854592139,20.0,24.33,24.307,17.0]
[1673854592349,20.0,24.333,24.307,17.0]
[1673854592555,1.97744,24.329,24.306,57.40956968]
[1673854593184,1.97744,24.329,24.306,17.0]
[1673854593916,1.97744,24.329,24.302,20.0]
[1673854593917,1.97744,24.329,24.304,17.0]
[1673854594130,1.97744,24.329,24.303,17.0]
[1673854594342,1.97744,24.329,24.304,20.0]
[1673854594568,1.97744,24.329,24.305,26.66738176]
[1673854595400,1.97744,24.329,24.306,9.66738176]
[1673854595601,1.97744,24.329,24.307,17.0]
[1673854595810,1.97744,24.329,24.3,19.2]
[1673854596020,1.97744,24.329,24.29,19.21]
[1673854596251,1.97744,24.329,24.295,9.66738176]
[1673854596443,1.97744,24.329,24.301,9.66738176]
[1673854596654,1.97744,24.329,24.29,59.61956968]
[1673854596864,1.97744,24.329,24.293,9.66738176]
[1673854597077,21.46196354,24.328,24.293,9.66738176]
[1673854597296,20.0,24.326,24.292,20.0]
[1673854597616,1.97744,24.325,24.292,29.66738176]
[1673854597938,1.97744,24.325,24.293,9.66738176]
[1673854598333,21.46196354,24.324,24.293,9.66738176]
[1673854598658,21.97744,24.323,24.294,20.0]
[1673854598875,1.97744,24.322,24.292,20.0]
[1673854599810,1.97744,24.322,24.293,17.0]
[1673854600138,1.97744,24.322,24.294,20.0]
[1673854600346,1.97744,24.322,24.296,20.0]
[1673854600540,1.97744,24.322,24.297,17.0]
[1673854600966,1.97744,24.322,24.296,17.0]
[1673854601174,1.97744,24.322,24.297,9.66738176]
[1673854601393,1.97744,24.322,24.298,57.40956968]
[1673854601619,1.97744,24.322,24.298,17.0]
[1673854602975,1.97744,24.322,24.299,9.66738176]
[1673854603181,20.0,24.323,24.3,17.0]
[1673854603591,20.0,24.323,24.301,9.66738176]
[1673854603809,20.0,24.323,24.302,37.0]
[1673854604015,20.0,24.326,24.303,20.0]
[1673854604225,20.0,24.326,24.304,20.0]
[1673854604430,20.0,24.326,24.305,17.0]
[1673854604864,1.97744,24.325,24.306,20.0]
[1673854605066,1.97744,24.325,24.305,17.0]
[1673854605597,1.97744,24.325,24.306,9.66738176]
[1673854605920,1.97744,24.325,24.295,40.40956968]
[1673854606137,1.97744,24.325,24.291,109.9345]
[1673854606343,1.97744,24.325,24.292,20.0]
[1673854606653,1.97744,24.325,24.292,29.66738176]
[1673854606872,1.97744,24.325,24.293,9.66738176]
[1673854607175,1.97744,24.325,24.28,19.33]
[1673854607397,20.0,24.324,24.292,9.66738176]
[1673854607583,1.97744,24.323,24.292,9.66738176]
[1673854608214,20.0,24.322,24.292,9.66738176]
[1673854608430,1.97744,24.321,24.292,9.66738176]
[1673854608650,20.0,24.32,24.293,17.0]
[1673854608861,1.97744,24.321,24.293,17.0]
[1673854609075,1.97744,24.321,24.294,29.66738176]
[1673854609273,115.6666,24.323,24.296,20.0]
[1673854609612,20.0,24.322,24.296,20.0]
[1673854609788,20.0,24.322,24.297,26.66738176]
[1673854610005,20.0,24.322,24.298,20.0]
[1673854610213,20.0,24.322,24.299,37.0]
[1673854610429,20.0,24.322,24.299,46.66738176]
[1673854610634,20.0,24.322,24.299,29.66738176]
[1673854610844,20.0,24.322,24.299,20.0]
[1673854611063,20.0,24.322,24.272,89.74099163]
[1673854611064,20.0,24.322,24.289,9.66738176]
[1673854611280,1.97744,24.321,24.291,20.0]
[1673854611475,1.97744,24.321,24.3,9.66738176]
[1673854612013,20.0,24.322,24.293,20.0]
[1673854612424,20.0,24.322,24.293,29.66738176]
[1673854612634,20.0,24.322,24.294,9.66738176]
[1673854612854,21.97744,24.322,24.294,9.66738176]
[1673854614339,21.97744,24.322,24.286,117.3842]
[1673854614340,17.0,24.321,24.286,117.3842]
[1673854614548,21.20744,24.32,24.281,15.970582]
[1673854614773,144.57744,24.319,24.279,9.66738176]
[1673854614951,18.97744,24.318,24.282,9.66738176]
[1673854615164,20.0,24.316,24.282,9.66738176]
[1673854615382,154.23444,24.315,24.274,20.0]
[1673854615595,20.0,24.313,24.275,16.474007]
[1673854615911,38.97744,24.312,24.276,9.66738176]
[1673854616121,20.0,24.31,24.277,20.0]
[1673854616315,18.97744,24.309,24.276,9.66738176]
[1673854616527,1.97744,24.308,24.277,20.0]
[1673854617057,41.46196354,24.307,24.276,29.66738176]
[1673854617272,1.97744,24.306,24.276,9.66738176]
[1673854617486,60.43940354,24.306,24.275,16.474007]
[1673854617699,101.94171768,24.305,24.275,16.474007]
[1673854617905,20.0,24.303,24.275,16.474007]
[1673854618222,20.0,24.299,24.275,16.474007]
[1673854618437,1.97744,24.298,24.275,16.474007]
[1673854619153,1.97744,24.298,24.276,20.0]
[1673854619368,116.3269,24.302,24.276,20.0]
[1673854619578,116.3269,24.302,24.277,9.66738176]
[1673854619783,139.1644,24.31,24.278,20.0]
[1673854620218,139.1644,24.31,24.28,20.0]
[1673854620552,139.1644,24.31,24.281,26.66738176]
[1673854620851,139.1644,24.31,24.282,9.66738176]
[1673854621063,139.1644,24.31,24.284,20.0]
[1673854621253,139.1644,24.31,24.248,491.46730122]
[1673854621469,21.97744,24.309,24.282,9.66738176]
[1673854621688,1.97744,24.308,24.282,9.66738176]
[1673854622626,1.97744,24.308,24.276,135.6958]
[1673854622839,1.97744,24.308,24.277,26.66738176]
[1673854623154,23.43940354,24.308,24.272,20.0]
[1673854623392,23.43940354,24.308,24.278,9.66738176]
[1673854623581,20.0,24.307,24.272,20.0]
[1673854623781,1.97744,24.306,24.276,9.66738176]
[1673854623988,1.97744,24.306,24.277,20.0]
[1673854624433,23.43940354,24.306,24.277,20.0]
[1673854624631,21.46196354,24.305,24.276,20.0]
[1673854624954,21.97744,24.304,24.272,20.0]
[1673854625159,1.97744,24.303,24.272,20.0]
[1673854625378,1.97744,24.303,24.276,20.0]
[1673854625769,1.97744,24.303,24.276,29.66738176]
[1673854626216,1.97744,24.303,24.277,20.0]
[1673854626417,1.97744,24.303,24.277,9.66738176]
[1673854626622,1.97744,24.303,24.276,36.4725]
[1673854627461,1.97744,24.303,24.276,16.4725]
[1673854629055,1.97744,24.303,24.278,20.0]
[1673854629248,1.97744,24.303,24.279,17.0]
[1673854629790,1.97744,24.303,24.28,20.0]
[1673854630103,1.97744,24.303,24.281,17.0]
[1673854630294,20.0,24.322,24.282,20.0]
[1673854630295,119.1644,24.31,24.282,20.0]
[1673854630507,119.1644,24.31,24.283,17.0]
[1673854630714,119.1644,24.31,24.284,20.0]
[1673854630936,20.0,24.322,24.285,17.0]
[1673854631148,139.4847,24.319,24.286,20.0]
[1673854631359,139.4847,24.319,24.287,17.0]
[1673854631574,20.0,24.319,24.287,17.0]
[1673854631776,20.0,24.329,24.29,19.23]
[1673854632100,20.0,24.322,24.292,20.0]
[1673854632294,20.0,24.322,24.293,20.0]
[1673854632504,119.5957,24.325,24.294,20.0]
[1673854632716,119.5957,24.325,24.295,20.0]
[1673854632924,119.5957,24.325,24.296,17.0]
[1673854633153,20.0,24.346,24.3,19.23]
[1673854633365,119.5957,24.339,24.301,17.0]
[1673854633559,119.5957,24.339,24.302,40.0]
[1673854633764,119.5957,24.339,24.303,17.0]
[1673854633974,20.0,24.338,24.305,20.0]
[1673854634197,119.5957,24.339,24.306,37.0]
[1673854634412,119.5957,24.339,24.31,19.07]
[1673854634615,20.0,24.338,24.31,19.07]
[1673854634828,23.43940354,24.335,24.311,17.0]
[1673854635039,21.97744,24.334,24.311,17.0]
[1673854635367,20.0,24.334,24.311,17.0]
[1673854635579,20.0,24.334,24.312,20.0]
[1673854635890,20.0,24.334,24.313,17.0]
[1673854636721,1.97744,24.333,24.301,56.25857862]
[1673854637344,41.46196354,24.338,24.303,20.0]
[1673854637555,115.4321,24.345,24.31,19.23]
[1673854637781,20.0,24.344,24.311,20.0]
[1673854637995,20.0,24.335,24.311,20.0]
[1673854638407,20.0,24.335,24.303,36.25857862]
[1673854638618,20.0,24.335,24.305,20.0]
[1673854638818,110.9473,24.336,24.305,20.0]
[1673854639033,110.9473,24.336,24.311,20.0]
[1673854639246,20.0,24.341,24.312,20.0]
[1673854639467,20.0,24.341,24.313,20.0]
[1673854639676,20.0,24.341,24.314,17.0]
[1673854639884,20.0,24.341,24.314,37.0]
[1673854640292,20.0,24.341,24.315,36.25857862]
[1673854640498,20.0,24.341,24.316,17.0]
[1673854640921,20.0,24.341,24.315,17.0]
[1673854641349,1.97744,24.34,24.315,17.0]
[1673854642217,1.97744,24.34,24.311,148.80637862]
[1673854642412,20.0,24.341,24.316,20.0]
[1673854642602,20.0,24.341,24.315,36.25857862]
[1673854643342,20.0,24.341,24.316,17.0]
[1673854643554,20.0,24.341,24.317,20.0]
[1673854643762,20.0,24.341,24.318,17.0]
[1673854644291,20.0,24.341,24.317,20.0]
[1673854644501,20.0,24.341,24.318,17.0]
[1673854644701,20.0,24.343,24.318,17.0]
[1673854644915,20.0,24.343,24.318,53.25857862]
[1673854645344,20.0,24.343,24.311,112.5478]
[1673854645561,1.97744,24.342,24.312,20.0]
[1673854645988,21.46196354,24.341,24.311,112.5478]
[1673854646203,21.97744,24.34,24.311,112.5478]
[1673854646410,1.97744,24.339,24.311,112.5478]
[1673854646622,20.0,24.338,24.311,112.5478]
[1673854646840,1.97744,24.337,24.311,112.5478]
[1673854647678,20.0,24.335,24.311,112.5478]
[1673854647887,108.7574,24.336,24.312,20.0]
[1673854648099,20.0,24.335,24.311,112.5478]
[1673854648305,20.0,24.335,24.312,20.0]
[1673854648514,20.0,24.335,24.312,30.66747889]
[1673854648928,20.0,24.335,24.314,20.0]
[1673854649145,20.0,24.335,24.315,17.0]
[1673854649372,108.7574,24.336,24.315,17.0]
[1673854649893,108.7574,24.336,24.316,66.92605751]
[1673854650109,108.7574,24.336,24.317,17.0]
[1673854650302,108.7574,24.336,24.317,27.66747889]
[1673854650713,20.0,24.335,24.317,17.0]
[1673854650943,20.0,24.335,24.3,19.23]
[1673854651265,20.0,24.335,24.308,10.66747889]